bitfinex/quotes_ETHUSD_20250413
["timestamp","ask_amount","ask_price","bid_price","bid_amount"]
[1744551504879,0.13869472,1594.2,1594.0,0.9967636]
[1744551505198,0.14102847,1594.1,1594.0,0.55]
[1744551505357,12.5454,1594.3,1594.0,0.55]
[1744551505693,0.14102847,1594.1,1594.0,0.55]
[1744551506167,6.27274,1594.2,1594.0,0.55]
[1744551506369,0.14078284,1594.1,1594.0,0.55]
[1744551506571,6.27274,1594.2,1594.0,0.55]
[1744551506772,0.14078284,1594.1,1594.0,0.55]
[1744551506956,6.27274,1594.2,1594.0,0.55]
[1744551507157,6.41408284,1594.1,1593.9,1.467636]
[1744551507374,6.27365,1594.0,1593.8,1.5777]
[1744551507702,6.27365,1594.0,1593.8,2.362928]
[1744551507903,0.14078284,1593.9,1593.8,2.362928]
[1744551508071,0.14078284,1593.9,1593.8,8.637238]
[1744551508401,0.14078284,1593.9,1593.8,9.187238]
[1744551508699,6.2733,1594.1,1593.8,9.187238]
[1744551508860,0.14078284,1593.9,1593.8,9.187238]
[1744551509383,14.55572,1594.2,1593.9,0.55]
[1744551509560,14.55572,1594.2,1593.9,6.82377]
[1744551510159,14.55572,1594.2,1594.0,0.2488]
[1744551510573,6.27313,1594.1,1594.0,0.2488]
[1744551511713,6.41403567,1594.1,1594.0,0.2488]
[1744551511909,0.14090567,1594.1,1594.0,0.2488]
[1744551512287,14.55572,1594.2,1594.0,0.2488]
[1744551512611,0.14090567,1594.1,1594.0,0.2488]
[1744551512788,14.55572,1594.2,1594.0,0.2488]
[1744551512987,0.14090567,1594.1,1594.0,0.2488]
[1744551513187,14.55572,1594.2,1594.0,0.2488]
[1744551513511,0.14090567,1594.1,1594.0,0.2488]
[1744551513874,14.55572,1594.2,1594.0,0.2488]
[1744551514079,0.14090567,1594.1,1594.0,0.2488]
[1744551514487,14.55572,1594.2,1594.0,0.2488]
[1744551514709,0.14090567,1594.1,1594.0,0.2488]
[1744551515133,7.86953,1594.1,1594.0,0.2488]
[1744551515350,8.01043567,1594.1,1594.0,0.2488]
[1744551516650,0.14090567,1594.1,1594.0,0.2488]
[1744551516919,12.90882,1594.2,1594.0,0.2488]
[1744551517109,0.14090567,1594.1,1594.0,0.2488]
[1744551517480,6.636,1594.2,1594.0,0.2488]
[1744551517681,0.14090567,1594.1,1594.0,0.2488]
[1744551518095,12.90879,1594.2,1594.0,0.2488]
[1744551518295,0.14090567,1594.1,1594.0,0.2488]
[1744551518699,19.18173,1594.2,1594.0,0.2488]
[1744551518918,6.41403567,1594.1,1594.0,0.2488]
[1744551519106,7.93583567,1594.1,1594.0,0.2488]
[1744551519833,0.14090567,1594.1,1594.0,7.00311213]
[1744551520034,3.37975,1594.5,1594.4,6.82195]
[1744551520314,66.35198,1594.8,1594.5,6.27155]
[1744551520315,64.98295,1594.8,1594.5,6.27155]
[1744551520517,58.71255,1594.8,1594.5,12.5431]
[1744551520686,58.71255,1594.8,1594.7,7.80317]
[1744551520687,3.37975,1594.8,1594.7,7.80317]
[1744551520880,3.37975,1594.8,1594.7,8.35317]
[1744551521189,3.37975,1594.8,1594.6,6.27084]
[1744551521400,3.37975,1594.8,1594.6,12.54183]
[1744551521812,3.37975,1594.8,1594.6,6.27084]
[1744551522315,3.37975,1594.8,1594.6,12.54183]
[1744551522884,3.37975,1594.8,1594.7,6.82077]
[1744551523112,3.37975,1594.8,1594.7,9.66860173]
[1744551523315,6.636,1594.9,1594.8,6.82037]
[1744551523487,4.13048808,1595.0,1594.9,6.26998]
[1744551523884,6.635,1595.2,1594.9,6.26998]
[1744551524084,6.635,1595.2,1595.0,12.5391]
[1744551524286,6.635,1595.2,1595.0,6.26955]
[1744551524812,6.635,1595.2,1595.0,6.26945]
[1744551525219,0.12592785,1595.1,1595.0,6.81945]
[1744551526107,0.12592785,1595.1,1595.0,8.40165]
[1744551526904,0.12592785,1595.1,1595.0,9.868809]
[1744551528542,0.12592785,1595.1,1594.8,7.85244]
[1744551528819,1.75602785,1595.1,1594.8,1.5822]
[1744551529001,8.02540785,1595.1,1594.7,1.31543173]
[1744551529197,14.29490785,1595.1,1594.7,1.31543173]
[1744551529423,8.02540785,1595.1,1594.7,1.31543173]
[1744551529625,8.02540785,1595.1,1594.8,0.55]
[1744551530028,8.02540785,1595.1,1594.8,1.36360417]
[1744551530441,14.29490785,1595.1,1594.8,0.55]
[1744551531311,1.75602785,1595.1,1594.6,1.5547]
[1744551531509,6.26987,1595.0,1594.6,1.5547]
[1744551531818,0.13833461,1594.9,1594.6,1.5547]
[1744551535035,0.13833461,1594.9,1594.6,7.82573]
[1744551535230,0.13833461,1594.9,1594.6,9.33828631]
[1744551536835,0.13833461,1594.9,1594.7,6.8206]
[1744551537036,0.13833461,1594.9,1594.6,3.12996457]
[1744551537037,6.635,1595.2,1594.9,8.43832]
[1744551537238,12.9,1595.2,1594.9,0.55]
[1744551537608,6.269,1595.2,1594.9,0.55]
[1744551537808,12.9,1595.2,1594.9,0.55]
[1744551538142,6.269,1595.2,1594.9,0.55]
[1744551538319,12.9,1595.2,1594.9,0.55]
[1744551538639,6.631,1595.2,1594.9,0.55]
[1744551538824,6.631,1595.2,1594.9,1.393863]
[1744551540451,12.89984,1595.2,1594.9,0.55]
[1744551541160,14.04537,1595.1,1594.8,1.6184]
[1744551541525,0.13661586,1595.0,1594.8,1.6184]
[1744551541721,6.631,1595.2,1594.8,1.6184]
[1744551541954,0.13661586,1595.1,1594.9,0.55]
[1744551542837,0.13661586,1595.1,1594.9,6.81979]
[1744551543037,0.13661586,1595.1,1595.0,1.231979]
[1744551548760,0.13661586,1595.1,1595.0,0.55]
[1744551553174,0.13661586,1595.1,1595.0,6.81959]
[1744551553371,0.13661586,1595.1,1595.0,8.48149]
[1744551553738,14.40313,1595.5,1595.0,14.75108]
[1744551553942,0.14238551,1595.4,1595.2,0.55]
[1744551554139,0.14238551,1595.4,1595.3,2.1444]
[1744551554570,0.14238551,1595.4,1595.3,8.41281]
[1744551554777,12.89547,1595.8,1595.3,14.68122]
[1744551554944,0.13224528,1595.7,1595.3,14.68122]
[1744551556478,0.13224528,1595.7,1595.3,8.41281]
[1744551556661,0.13224528,1595.7,1595.5,0.55]
[1744551556864,0.13224528,1595.7,1595.6,8.41163]
[1744551557040,12.89441,1596.1,1595.6,8.47429318]
[1744551557243,0.13841363,1596.0,1595.7,0.55]
[1744551557475,0.13841363,1596.0,1595.7,7.27565101]
[1744551557679,0.13841363,1596.0,1595.9,0.55]
[1744551557851,0.13841363,1596.0,1595.9,2.1444]
[1744551558472,6.26455,1596.3,1595.9,2.1444]
[1744551558678,0.14123685,1596.0,1595.9,2.1444]
[1744551558876,6.26455,1596.3,1595.9,2.1444]
[1744551559080,0.14123685,1596.0,1595.9,2.1444]
[1744551559272,6.26455,1596.3,1595.9,3.05822151]
[1744551559480,0.14123685,1596.0,1595.9,3.05822151]
[1744551559644,6.26455,1596.3,1595.9,3.05822151]
[1744551559980,19.1765,1596.4,1595.9,9.32405151]
[1744551560175,0.14123685,1596.3,1596.1,0.55]
[1744551560378,6.28416,1596.4,1596.1,0.55]
[1744551560587,0.02,1596.4,1596.3,0.55]
[1744551562553,1.5689,1596.4,1596.0,2.45050515]
[1744551562747,1.5689,1596.4,1596.0,1.5181]
[1744551562977,0.02,1596.4,1596.1,0.55]
[1744551563149,0.02,1596.4,1596.2,1.5181]
[1744551564259,0.02,1596.4,1596.3,0.55]
[1744551566362,12.54841,1596.4,1596.1,0.47245463]
[1744551566570,6.2648,1596.3,1596.1,0.50133546]
[1744551566765,0.02,1596.4,1596.1,6.76638546]
[1744551567095,0.02,1596.4,1596.2,0.55]
[1744551569000,0.02,1596.4,1596.3,1.6623]
[1744551571715,0.15119471,1596.4,1596.3,1.6623]
[1744551572004,0.02,1596.4,1596.3,2.510001]
[1744551572192,0.15119471,1596.4,1596.3,2.510001]
[1744551572377,0.02,1596.4,1596.3,2.510001]
[1744551572993,0.15119471,1596.4,1596.3,2.510001]
[1744551574528,0.15119471,1596.4,1596.3,1.6623]
[1744551576914,0.15119471,1596.4,1596.3,7.98941843]
[1744551577584,0.15119471,1596.4,1596.3,8.53941843]
[1744551577911,0.15119471,1596.4,1596.3,0.55]
[1744551579416,0.15119471,1596.4,1596.3,6.81448]
[1744551579617,0.15119471,1596.4,1596.3,9.720811]
[1744551580198,0.15119471,1596.4,1596.3,12.720811]
[1744551583918,0.15119471,1596.4,1596.3,6.456331]
[1744551584226,0.15119471,1596.4,1596.3,12.720811]
[1744551585998,0.15119471,1596.4,1596.3,6.456331]
[1744551587031,0.15119471,1596.4,1596.3,4.857931]
[1744551587324,0.15119471,1596.4,1596.3,11.122411]
[1744551588324,0.15119471,1596.4,1596.3,4.857931]
[1744551588823,0.15119471,1596.4,1596.3,11.122411]
[1744551589425,0.15119471,1596.4,1596.3,1.857931]
[1744551589721,0.15119471,1596.4,1596.3,0.55]
[1744551590818,0.15119471,1596.4,1596.1,0.97195593]
[1744551591020,1.5669,1596.2,1596.0,0.2488]
[1744551591217,1.5669,1596.2,1596.0,3.2488]
[1744551591415,1.5669,1596.2,1596.1,0.55]
[1744551591618,1.5669,1596.2,1596.0,3.2488]
[1744551591823,1.5669,1596.2,1596.0,4.826865]
[1744551592010,1.5669,1596.2,1596.1,0.55]
[1744551593542,7.83177,1596.2,1596.0,0.2488]
[1744551594114,1.5669,1596.2,1596.1,0.55]
[1744551594807,6.28415,1596.4,1596.1,0.55]
[1744551594808,7.79895,1596.4,1596.1,0.55]
[1744551595131,6.2645,1596.3,1596.1,1.256434]
[1744551595338,6.2645,1596.3,1596.1,0.55]
[1744551596115,7.79895,1596.4,1596.1,0.55]
[1744551596923,6.26459,1596.3,1596.1,0.55]
[1744551597128,12.52927,1596.3,1596.1,0.55]
[1744551597829,6.26459,1596.3,1596.1,0.55]
[1744551598638,7.77967,1596.2,1596.1,0.55]
[1744551601041,6.26527,1596.1,1596.0,0.2488]
[1744551601545,6.39136722,1596.1,1596.0,0.2488]
[1744551601839,7.95596722,1596.1,1596.0,0.2488]
[1744551602722,1.69069722,1596.1,1596.0,0.2488]
[1744551603037,0.12609722,1596.1,1596.0,0.7988]
[1744551603229,0.12609722,1596.1,1596.0,2.349]
[1744551603433,20.72906,1596.4,1596.0,9.476147]
[1744551603628,8.2006,1596.4,1596.1,6.81525]
[1744551603865,0.02,1596.4,1596.1,13.08018]
[1744551604020,6.28426,1596.4,1596.1,0.55]
[1744551604461,6.2645,1596.3,1596.1,0.55]
[1744551605131,6.2645,1596.3,1596.1,0.8710487]
[1744551605832,6.28417,1596.4,1596.1,0.8710487]
[1744551606833,6.26449,1596.3,1596.1,0.8710487]
[1744551607022,6.28417,1596.4,1596.1,0.8710487]
[1744551608543,6.28417,1596.4,1596.1,1.33378546]
[1744551609447,0.02,1596.4,1596.1,7.59901546]
[1744551609653,0.02,1596.4,1596.2,0.75990155]
[1744551612151,6.28427,1596.4,1596.2,0.75990155]
[1744551612326,12.54859,1596.4,1596.1,1.33378546]
[1744551612528,6.28427,1596.4,1596.1,1.33378546]
[1744551613127,6.26512,1596.2,1596.0,0.2488]
[1744551613323,6.26527,1596.1,1596.0,0.2488]
[1744551613941,6.26527,1596.1,1596.0,0.7988]
[1744551614367,6.26527,1596.1,1596.0,0.2488]
[1744551614677,7.87367,1596.1,1596.0,0.2488]
[1744551615061,14.25342,1596.1,1596.0,0.2488]
[1744551615453,14.72712596,1596.1,1596.0,0.2488]
[1744551616177,6.26794,1595.5,1595.2,4.5868]
[1744551616354,6.26794,1595.5,1595.2,5.672392]
[1744551617064,6.26816,1595.4,1595.2,4.5868]
[1744551617262,6.26841,1595.3,1595.0,3.60955104]
[1744551617460,6.26882,1595.2,1595.0,2.02275104]
[1744551617666,12.53867,1595.1,1594.8,1.5868]
[1744551617862,6.26998,1595.0,1594.6,0.47624266]
[1744551618063,6.26998,1595.0,1594.5,1.5868]
[1744551618064,6.27081,1594.7,1594.5,1.5868]
[1744551618369,6.20808,1594.7,1594.6,0.55]
[1744551618572,6.27213,1594.4,1594.0,2.209]
[1744551618773,12.54444,1594.4,1594.0,3.057272]
[1744551618992,6.27077,1594.7,1594.1,3.0]
[1744551619269,1.6084,1594.8,1594.2,6.27271]
[1744551619270,6.27119,1594.6,1594.2,6.27271]
[1744551619475,6.27216,1594.4,1594.0,3.52609246]
[1744551619798,6.27208,1594.4,1594.1,0.06272351]
[1744551619945,12.54497,1594.3,1594.0,2.209]
[1744551620280,6.27296,1594.2,1594.0,0.55]
[1744551621574,6.27239,1594.3,1594.1,0.55]
[1744551623243,6.27273,1594.2,1594.0,0.55]
[1744551623449,6.27313,1594.1,1594.0,0.55]
[1744551624076,6.27273,1594.2,1594.1,0.55]
[1744551624663,6.27234,1594.3,1594.1,0.55]
[1744551624664,3.37975,1594.4,1594.1,0.55]
[1744551624872,3.37975,1594.4,1594.2,1.62631948]
[1744551625069,3.37975,1594.4,1594.2,1.5636]
[1744551625771,6.2712,1594.6,1594.2,1.5636]
[1744551626076,6.27044,1594.8,1594.3,0.55]
[1744551626388,6.27093,1594.7,1594.3,0.55]
[1744551626554,12.54193,1594.7,1594.3,0.55]
[1744551627287,6.2718,1594.5,1594.3,0.55]
[1744551627581,6.27313,1594.1,1594.0,0.55]
[1744551627981,6.27291,1594.2,1594.0,0.55]
[1744551628551,12.54595,1594.2,1594.0,0.55]
[1744551628782,12.54595,1594.2,1594.1,0.55]
[1744551628952,6.27291,1594.2,1594.0,0.55]
[1744551629459,6.27241,1594.3,1594.1,0.55]
[1744551629660,9.65054,1594.7,1594.3,0.55]
[1744551629871,6.27079,1594.7,1594.4,0.55]
[1744551630078,6.27119,1594.6,1594.4,0.55]
[1744551630882,12.54255,1594.6,1594.3,0.55]
[1744551631471,6.27119,1594.6,1594.3,7.657163]
[1744551631681,0.24783981,1594.5,1594.3,7.657163]
[1744551633589,0.24783981,1594.5,1594.3,7.657113]
[1744551635282,0.24783981,1594.5,1594.4,6.82195]
[1744551635484,19.15699,1594.8,1594.4,13.0939]
[1744551635672,0.23541402,1594.5,1594.4,6.82195]
[1744551635875,0.23602978,1594.5,1594.4,6.82195]
[1744551636074,19.15699,1594.8,1594.4,6.82195]
[1744551636275,6.50681978,1594.7,1594.4,6.82195]
[1744551636675,6.50681978,1594.7,1594.4,7.28531639]
[1744551636896,6.50681978,1594.7,1594.4,8.72456433]
[1744551637403,6.50681978,1594.7,1594.4,8.72440433]
[1744551637770,12.77776978,1594.7,1594.4,8.72440433]
[1744551638288,6.27116,1594.6,1594.4,2.45261433]
[1744551638797,0.23602978,1594.5,1594.4,2.45261433]
[1744551639546,0.23602978,1594.5,1594.4,1.98924794]
[1744551639726,0.23602978,1594.5,1594.4,0.55]
[1744551640811,12.54187,1594.7,1594.4,0.55]
[1744551641010,0.23602978,1594.5,1594.4,0.55]
[1744551641221,6.27155,1594.5,1594.4,0.55]
[1744551641531,0.23602978,1594.5,1594.4,0.55]
[1744551641899,6.50757978,1594.5,1594.4,0.55]
[1744551643831,0.23602978,1594.5,1594.4,0.55]
[1744551646212,6.50757978,1594.5,1594.4,0.55]
[1744551647043,0.23602978,1594.5,1594.4,0.55]
[1744551647637,0.23602978,1594.5,1594.4,8.37325]
[1744551647940,6.27078,1594.7,1594.4,9.355481]
[1744551648107,0.23652236,1594.6,1594.5,6.82154]
[1744551648310,12.88638,1594.8,1594.5,6.82154]
[1744551648641,0.23652236,1594.7,1594.6,6.82116]
[1744551648842,0.23652236,1594.7,1594.6,9.84993]
[1744551649048,0.23652236,1594.7,1594.6,2.2145]
[1744551649049,6.27077,1594.7,1594.6,2.2145]
[1744551649237,6.48850787,1594.7,1594.6,2.2145]
[1744551649559,1.5179,1594.4,1594.0,1.02898653]
[1744551649767,6.27291,1594.2,1594.0,0.55]
[1744551650064,0.21773787,1594.1,1594.0,0.55]
[1744551650214,0.21773787,1594.1,1594.0,1.1]
[1744551650414,6.27295,1594.2,1594.0,0.55]
[1744551650674,6.49086787,1594.1,1594.0,0.55]
[1744551651013,6.49086787,1594.1,1594.0,1.1]
[1744551651558,6.49086787,1594.1,1594.0,0.55]
[1744551653349,8.01676787,1594.1,1594.0,0.55]
[1744551653647,6.27667,1593.2,1592.9,1.6479]
[1744551653817,1.5259,1593.3,1593.0,6.27729]
[1744551654011,0.20700762,1593.2,1592.9,7.92575]
[1744551654346,0.20700762,1593.2,1593.0,6.27744]
[1744551654508,6.27606,1593.4,1593.1,0.08276501]
[1744551654709,6.27667,1593.2,1593.1,0.02]
[1744551654932,6.27667,1593.3,1593.1,0.02]
[1744551655149,0.20700762,1593.2,1593.1,0.02]
[1744551655332,6.48367762,1593.2,1593.1,0.02]
[1744551655707,0.20700762,1593.2,1593.1,0.02]
[1744551656111,6.48367762,1593.2,1593.1,0.02]
[1744551656666,0.20700762,1593.2,1593.1,0.02]
[1744551657341,8.06157762,1593.2,1593.1,0.02]
[1744551657541,1.78490762,1593.2,1593.1,0.02]
[1744551657848,0.20700762,1593.2,1593.1,0.57]
[1744551658144,7.85383,1593.4,1593.1,1.254719]
[1744551658353,0.20700762,1593.3,1593.1,0.57]
[1744551658600,1.5779,1593.4,1593.1,0.02]
[1744551658730,1.5779,1593.4,1593.2,0.55]
[1744551658731,0.20700762,1593.3,1593.2,0.55]
[1744551658926,1.5779,1593.4,1593.1,0.02]
[1744551659156,7.85567,1593.2,1593.1,0.02]
[1744551659522,8.06267762,1593.2,1593.1,0.02]
[1744551660127,14.67967762,1593.2,1593.1,0.02]
[1744551660724,8.06267762,1593.2,1593.1,0.02]
[1744551662182,14.67967762,1593.2,1593.1,0.02]
[1744551662343,0.20700762,1593.2,1593.1,0.57]
[1744551662529,4.95875,1593.4,1593.1,1.411209]
[1744551662725,0.20700762,1593.3,1593.1,7.688259]
[1744551662945,3.37975,1593.4,1593.1,7.688259]
[1744551663130,0.20700762,1593.3,1593.1,7.688259]
[1744551663339,3.37975,1593.4,1593.1,7.688259]
[1744551663549,0.17849918,1593.3,1593.1,7.688259]
[1744551663756,3.37975,1593.4,1593.1,6.84705]
[1744551663958,6.617,1593.5,1593.3,0.55]
[1744551664161,6.617,1593.5,1593.3,6.82626]
[1744551664494,9.65445,1593.8,1593.4,6.82588]
[1744551664495,14.52,1593.8,1593.4,6.82588]
[1744551664969,14.52,1593.8,1593.4,14.569716]
[1744551665176,14.52,1593.8,1593.4,8.293836]
[1744551665542,12.03134808,1594.0,1593.6,6.27486]
[1744551665777,12.03134808,1594.0,1593.6,14.12971]
[1744551665987,5.75778808,1594.0,1593.8,0.55]
[1744551666301,4.13048808,1594.0,1593.8,0.55]
[1744551666597,4.13048808,1594.0,1593.8,6.82425]
[1744551666801,4.13048808,1594.0,1593.8,0.55]
[1744551667191,4.13048808,1594.0,1593.8,6.27399]
[1744551667369,4.13048808,1594.0,1593.8,0.682399]
[1744551667705,4.13048808,1594.0,1593.9,0.55]
[1744551667998,6.618,1594.1,1593.9,0.55]
[1744551668358,12.89118,1594.1,1593.9,0.55]
[1744551668759,6.618,1594.1,1593.9,6.82377]
[1744551669372,6.618,1594.1,1593.9,6.82369]
[1744551669569,17.89602,1594.4,1594.1,0.55]
[1744551669893,14.51627,1594.4,1594.1,0.55]
[1744551670408,14.51627,1594.4,1594.1,6.82311]
[1744551671111,12.88897,1594.4,1594.1,6.82311]
[1744551671276,6.617,1594.4,1594.3,0.55]
[1744551671655,11.55385,1594.7,1594.3,0.55]
[1744551672004,3.37975,1594.7,1594.5,0.55]
[1744551672204,66.71239,1594.8,1594.5,0.55]
[1744551672795,60.442,1594.8,1594.2,6.27269]
[1744551673101,60.442,1594.8,1594.3,6.82231]
[1744551673102,12.54224,1594.7,1594.3,6.82231]
[1744551673407,6.27109,1594.7,1594.3,13.09441]
[1744551673575,6.27109,1594.7,1594.4,6.2719]
[1744551673959,60.442,1594.8,1594.5,6.82152]
[1744551675197,1.5571,1594.9,1594.6,0.55]
[1744551675419,14.07186,1595.1,1594.8,0.55]
[1744551675712,7.8024,1595.1,1594.8,0.55]
[1744551676074,14.07186,1595.1,1594.8,0.55]
[1744551676806,0.20467401,1595.0,1594.9,0.55]
[1744551676963,12.5379,1595.2,1594.9,0.55]
[1744551677164,0.20615411,1595.1,1594.9,0.55]
[1744551677419,6.26976,1595.0,1594.7,3.55]
[1744551677813,6.47639744,1594.9,1594.5,14.19196]
[1744551677997,0.20627744,1594.9,1594.6,6.82116]
[1744551678191,0.20627744,1594.9,1594.6,0.55]
[1744551678192,6.2704,1594.8,1594.6,0.55]
[1744551678391,0.20664743,1594.7,1594.6,0.55]
[1744551678616,0.20664743,1594.7,1594.5,1.6491]
[1744551678780,6.47744743,1594.7,1594.4,3.0]
[1744551678980,6.47744743,1594.7,1594.3,14.05119]
[1744551679171,6.47744743,1594.7,1594.4,0.55]
[1744551679692,12.74844743,1594.7,1594.4,0.55]
[1744551680069,12.74848743,1594.7,1594.4,0.55]
[1744551680269,6.27119,1594.6,1594.4,0.55]
[1744551680603,12.54193,1594.7,1594.4,0.55]
[1744551680803,0.20664743,1594.6,1594.4,0.55]
[1744551681430,6.47781743,1594.6,1594.4,0.55]
[1744551681626,6.47781743,1594.6,1594.1,10.74867]
[1744551681627,6.27267,1594.3,1594.1,1.47562]
[1744551681908,6.27267,1594.3,1593.9,7.81738]
[1744551682107,6.27325,1594.1,1593.9,3.252766]
[1744551682310,0.20418059,1594.2,1593.7,1.5436]
[1744551682509,6.27394,1593.9,1593.5,6.27535]
[1744551682690,6.27394,1593.9,1593.5,7.81895]
[1744551682888,6.47518598,1593.8,1593.5,7.81907]
[1744551683410,6.27494,1593.7,1593.3,6.2761]
[1744551683715,6.27494,1593.7,1593.3,13.961861]
[1744551683925,6.2736,1594.0,1593.6,6.27481]
[1744551684209,6.2736,1594.0,1593.7,0.55]
[1744551684389,6.2736,1594.0,1593.7,6.82467]
[1744551684777,12.54733,1594.0,1593.7,0.55]
[1744551685100,14.45124,1594.2,1593.9,0.55]
[1744551685278,20.72421,1594.2,1593.9,0.55]
[1744551685482,6.2732,1594.1,1593.9,0.55]
[1744551685682,6.27352,1594.0,1593.9,0.55]
[1744551687311,12.54725,1594.0,1593.7,0.55]
[1744551687511,12.54725,1594.0,1593.7,2.159999]
[1744551687898,6.27352,1594.0,1593.7,2.159999]
[1744551688915,6.27404,1593.9,1593.7,2.159999]
[1744551689119,6.27404,1593.9,1593.7,0.55]
[1744551689317,6.2736,1594.0,1593.7,6.82456]
[1744551689497,14.45112,1594.2,1593.6,2.1358]
[1744551689694,6.27351,1594.1,1593.7,9.27455]
[1744551689996,6.27351,1594.1,1593.8,0.55]
[1744551690199,6.27366,1594.0,1593.8,0.55]
[1744551690393,6.27391,1593.9,1593.8,0.55]
[1744551690698,12.54812,1593.9,1593.7,0.55]
[1744551690886,6.27391,1593.9,1593.7,0.55]
[1744551691090,6.27361,1594.0,1593.7,0.55]
[1744551691308,6.27413,1593.9,1593.7,0.55]
[1744551691636,0.1850703,1593.8,1593.7,0.55]
[1744551691786,6.4593803,1593.8,1593.7,0.55]
[1744551692418,0.1850703,1593.8,1593.7,0.55]
[1744551693112,0.1850703,1593.8,1593.7,0.905]
[1744551694386,0.1850703,1593.8,1593.7,0.55]
[1744551696290,6.4593803,1593.8,1593.5,0.55]
[1744551696494,0.1850703,1593.8,1593.5,6.82532]
[1744551696694,0.1850703,1593.8,1593.5,13.10064]
[1744551696935,6.4595303,1593.8,1593.5,0.55]
[1744551697131,6.4595303,1593.8,1593.5,8.594184]
[1744551697439,6.4595303,1593.8,1593.5,14.869424]
[1744551697594,6.4595303,1593.8,1593.5,8.594074]
[1744551697796,12.7342103,1593.8,1593.5,8.594074]
[1744551698228,6.4595303,1593.8,1593.5,8.594074]
[1744551698597,6.4595303,1593.8,1593.5,0.55]
[1744551698921,6.4593803,1593.8,1593.5,6.82545]
[1744551701039,0.1850703,1593.8,1593.6,6.27494]
[1744551701223,12.88864,1594.0,1593.6,12.54988]
[1744551701396,6.45542896,1593.9,1593.6,12.54989]
[1744551701596,6.45542896,1593.9,1593.6,13.859879]
[1744551701835,6.45524896,1593.9,1593.6,13.859909]
[1744551702005,6.45524896,1593.9,1593.6,13.859869]
[1744551702210,6.45524896,1593.9,1593.6,7.584929]
[1744551702529,12.72939896,1593.9,1593.7,0.55]
[1744551702702,6.45524896,1593.9,1593.7,0.55]
[1744551703634,0.18129896,1593.9,1593.5,0.55]
[1744551703798,0.18129896,1593.9,1593.7,6.82456]
[1744551703999,0.18129896,1593.9,1593.7,8.47476]
[1744551704893,6.45541896,1593.9,1593.7,0.55]
[1744551705132,12.72964896,1593.9,1593.6,0.55]
[1744551707033,6.27482,1593.7,1593.5,3.0]
[1744551707335,0.1837165,1593.6,1593.5,3.0]
[1744551707738,6.27482,1593.7,1593.6,0.55]
[1744551707904,6.27482,1593.7,1593.3,9.335981]
[1744551707905,6.27522,1593.6,1593.3,9.335981]
[1744551708105,12.55063,1593.6,1593.3,9.335981]
[1744551708325,12.55063,1593.6,1593.4,0.55]
[1744551708635,6.27522,1593.6,1593.4,0.55]
[1744551709041,6.27478,1593.7,1593.4,0.55]
[1744551709199,6.27478,1593.7,1593.4,6.82587]
[1744551709400,6.27515,1593.6,1593.4,0.55]
[1744551709743,12.54958,1593.7,1593.4,0.55]
[1744551710039,6.27474,1593.7,1593.4,6.82576]
[1744551710958,12.54966,1593.7,1593.4,6.82576]
[1744551711330,12.55064,1593.6,1593.4,0.55]
[1744551711749,12.55064,1593.6,1593.3,3.55]
[1744551712086,6.27529,1593.6,1593.3,11.43653]
[1744551712419,6.27529,1593.6,1593.3,17.71265]
[1744551712620,12.54963,1593.7,1593.3,17.71265]
[1744551712821,14.15774,1593.8,1593.5,0.55]
[1744551713439,1.6088,1593.8,1593.5,6.82539]
[1744551713638,20.7815,1593.9,1593.6,6.27504]
[1744551714247,20.7825,1593.9,1593.6,6.27504]
[1744551714562,6.2751,1593.6,1593.5,0.55]
[1744551715474,12.54979,1593.7,1593.5,0.55]
[1744551715971,20.78242,1593.9,1593.5,8.40065]
[1744551716162,14.16642,1593.9,1593.5,9.240715]
[1744551716474,6.27454,1593.8,1593.5,9.240715]
[1744551716677,1.6183,1593.9,1593.5,9.240715]
[1744551716678,20.78243,1593.9,1593.5,15.516095]
[1744551716842,6.27435,1593.8,1593.5,9.240715]
[1744551717342,8.2343,1593.9,1593.5,0.55]
[1744551717647,8.2343,1593.9,1593.1,6.29704]
[1744551717648,6.27625,1593.4,1593.1,1.5954]
[1744551717851,6.27667,1593.2,1593.1,0.02]
[1744551719064,12.55289,1593.3,1593.1,0.02]
[1744551719453,6.27667,1593.2,1593.1,0.02]
[1744551719848,6.27639,1593.3,1593.1,0.02]
[1744551720887,12.55286,1593.3,1593.1,0.02]
[1744551721179,20.7911,1593.4,1593.1,0.02]
[1744551721374,6.27633,1593.3,1593.1,0.02]
[1744551721583,0.17976466,1593.2,1593.1,0.02]
[1744551722451,0.17976466,1593.2,1593.1,7.144589]
[1744551722653,6.27654,1593.3,1593.1,0.02]
[1744551722850,0.17976466,1593.2,1593.1,0.57]
[1744551724481,6.45643466,1593.2,1593.1,0.57]
[1744551725482,6.45643466,1593.2,1593.1,0.02]
[1744551726285,0.17976466,1593.2,1593.1,0.02]
[1744551726586,6.45643466,1593.2,1593.1,0.02]
[1744551727403,8.06793466,1593.2,1593.1,0.02]
[1744551730506,14.44768466,1593.2,1593.1,1e-05]
[1744551731184,6.28026,1592.3,1592.1,2.04552455]
[1744551731375,0.15963634,1592.2,1592.1,2.04552455]
[1744551732281,11.45819634,1592.2,1592.1,0.02]
[1744551732481,11.45819634,1592.2,1592.1,1e-05]
[1744551732882,7.92099,1591.7,1591.3,0.3947262]
[1744551733110,6.616,1591.6,1591.3,6.6786762]
[1744551733269,6.28377,1591.4,1591.3,0.3947262]
[1744551733474,1.6382,1591.4,1591.3,0.3947262]